Cogmind - Beta 13 @@@ ROGUE MODE // 2024.04.13 @ 08:18:35 Player: JTMusky Result: Destroyed by GU-024(R) with Subdweller Machine Gun Performance ------------- Evolutions (0) 0 Regions Visited (2) 400 Robots Destroyed (25) 125 Value Destroyed (590) 590 Prototype IDs (4) 80 Alien Tech Used (0) 0 Bonus (0) 0 TOTAL SCORE: 1195 Bonus ------- None Cogmind --------- Core Integrity 0/250 Matter 270/300 Energy 100/100 System Corruption 0% Temperature Cool (0) Movement Rolling (80) Location -10/Subcaves Parts ------- > --- POWER (1) -------- (None) > --- PROPULSION (2) --- Wheel Wheel > --- UTILITY (2) ------ Structural Scanner > --- WEAPON (2) ------- Medium Laser Mini Grenade Launcher > --- INVENTORY (5) ---- Aluminum Leg Visual Processing Unit Sensor Array Improved Terrain Scanner Datajack Peak State ------------ > --- POWER ------------ Ion Engine > --- PROPULSION ------- Wheel Wheel > --- UTILITY ---------- Improved Terrain Scanner Hacking Suite > --- WEAPON ----------- Medium Laser Datajack > --- INVENTORY -------- Light Treads Light Treads Aluminum Leg Small Storage Unit Medium Laser [Rating: 11] Favorites ----------- Power Ion Engine Engine Ion Engine Propulsion Wheel Treads Light Treads Wheel Wheel Hover Unit Hover Unit Utility Improved Terrain Scanner Device Improved Terrain Scanner Storage Small Storage Unit Processor Signal Interpreter Hackware Hacking Suite Weapon Medium Laser Energy Gun Medium Laser Launcher Mini Grenade Launcher Special Melee Weapon Datajack Build | -11 -10 -10 ------- Run | Yrd Mat Sub Slots Evolved . | . . . Power . | . . . Propulsion . | . . . Utility . | . . . Weapon . | . . . Parts Attached 26 | 7 19 . Power 2 | 1 1 . Engine 2 | 1 1 . Core . | . . . Reactor . | . . . Propulsion 7 | 2 5 . Treads 2 | . 2 . Leg . | . . . Wheel 4 | 2 2 . Hover 1 | . 1 . Flight . | . . . Utility 9 | 2 7 . Device 5 | 1 4 . Storage 2 | 1 1 . Processor 1 | . 1 . Hackware 1 | . 1 . Protection . | . . . Artifact . | . . . Weapon 8 | 2 6 . Energy Gun 4 | 2 2 . Energy Cannon . | . . . Ballistic Gun . | . . . Ballistic Cannon . | . . . Launcher 2 | . 2 . Special Weapon . | . . . Impact Weapon . | . . . Slashing Weapon . | . . . Piercing Weapon . | . . . Special Melee Weapon 2 | . 2 . Unidentified Prototypes . | . . . Parts Lost 6 | . 4 2 Power 2 | . 1 1 Propulsion 2 | . 2 . Utility 2 | . 1 1 Weapon . | . . . Highest Loss Streak 2 | . 2 2 To Critical Strikes . | . . . Average Slot Usage (%) 97 | . 97 85 Engine 13 | . 13 14 Treads 8 | . 9 . Wheel 17 | . 17 28 Device 15 | . 15 14 Storage 1 | . 1 . Processor 3 | . 3 . Hackware 7 | . 7 . Energy Gun 17 | . 17 14 Launcher 5 | . 5 14 Special Melee Weapon 4 | . 4 . Naked Turns . | . . . Heaviest Build 15 | 15 15 . Greatest Support 40 | 20 40 . Greatest Overweight (x) 3 | 1 3 . Average Overweight (x) . | . . . Largest Inventory Capacity 8 | 8 8 5 Average Capacity 6 | 7 5 5 Most Carried 5 | 3 5 5 Average Carried 4 | 2 4 5 Final Capacity 8 | 8 5 5 Final Carried 5 | 3 5 5 Class Distribution -------------------- 90% | Mutant 9% | Scavenger-Mutant Dominant Class ---------------- Mutant | -10/Materials Mutant | -10/Subcaves Resources | -11 -10 -10 ----------- Run | Yrd Mat Sub Matter Collected 573 | 270 303 . Remotely . | . . . Salvage Created 784 | 119 665 . Parts 43 | 4 39 . Haulers Intercepted 1 | . 1 . Recyclers Shooed . | . . . Parts Field Recycled . | . . . Retrieved Matter . | . . . Parts Self-Destructed . | . . . Prevented . | . . . Kills | -11 -10 -10 ------- Run | Yrd Mat Sub Combat Hostiles Destroyed 18 | . 18 . Guns 15 | . 15 . AOE 3 | . 3 . Classes Destroyed 8 | 2 6 . Worker 1 | . 1 . Tunneler 2 | 1 1 . Hauler 1 | . 1 . Recycler 1 | 1 . . Operator 1 | . 1 . Watcher 1 | . 1 . Swarmer 5 | . 5 . Grunt 13 | . 13 . Best Kill Streak 3 | 1 3 . Combat Bots Only 3 | . 3 . Max Kills in Single Turn 3 | 1 3 . Gunslinging . | . . . Exploded 2 | . 2 . Melee . | . . . Uniques/NPCs Destroyed . | . . . Combat | -11 -10 -10 -------- Run | Yrd Mat Sub Hostile Shots Fired 99 | . 93 6 Missed 17 | . 15 2 Damage Taken 984 | . 910 74 Core 256 | . 239 17 Absorbed by Shields . | . . . Regen/Repaired (Parts) 86 | . 86 . Core Remaining (%) 100 | 100 . . Volleys Fired 76 | 6 66 4 Largest 2 | 2 2 1 Hottest 100 | 100 100 30 Shots Fired 109 | 12 93 4 Gun 104 | 12 92 . Cannon . | . . . Launcher 5 | . 1 4 Special . | . . . Kinetic . | . . . Thermal 104 | 12 92 . Explosive 5 | . 1 4 Electromagnetic . | . . . Robot Hit Streak 11 | 3 11 2 Robot Miss Streak 4 | 3 4 1 Penetration Max . | . . . Secondary Targets 2 | . 2 . Max Gunslinging Chain 1 | . 1 . Shots Hit Robots 72 | 7 63 2 Core Hits 39 | 3 36 . Critical Kills . | . . . Critical Parts Destroyed . | . . . Critical Strikes 4 | 1 3 . Burn 4 | 1 3 . Melee Attacks 4 | . 4 . Impact . | . . . Slashing . | . . . Piercing . | . . . Sneak Attacks 1 | . 1 . Combat Hostiles . | . . . Follow-up Attacks . | . . . Damage Inflicted 1514 | 89 1252 173 Guns 854 | 89 765 . Cannons . | . . . Explosions 660 | . 487 173 Melee . | . . . Ramming . | . . . Kinetic . | . . . Thermal 1221 | 89 1132 . Explosive 293 | . 120 173 Electromagnetic . | . . . Impact . | . . . Slashing . | . . . Piercing . | . . . Highest Corruption . | . . . Average Corruption . | . . . Corruption Purged . | . . . Corruption Blocked . | . . . Overload Shots . | . . . Overflow Damage 145 | . 145 . Projectiles . | . . . Explosions 145 | . 145 . Melee . | . . . Knockbacks . | . . . Impact . | . . . Kinetic . | . . . Secondary . | . . . Self-Inflicted Damage 86 | . 86 . Shots 1 | . 1 . Rammed . | . . . Targets Rammed . | . . . Kicked . | . . . Crushed . | . . . Highest Temperature 456 | 117 456 . Average Temperature 96 | 50 101 . Received Heat Transfer 354 | . 354 . Effects 5 | . 5 . Shutdowns 1 | . 1 . Interference 1 | . 1 . Matter Decay 2 | . 2 . Short Circuit 1 | . 1 . Siege Activations . | . . . Robots Corrupted . | . . . Combat Hostiles . | . . . Parts Fried . | . . . Impact Corruptions . | . . . Robots Melted . | . . . Combat Hostiles . | . . . Parts Melted 6 | 1 5 . Heat Transferred 3012 | 333 2679 . Parts Sabotaged . | . . . Parts Stolen . | . . . Parts Stripped . | . . . Power Chain Reactions . | . . . Alert | -11 -10 -10 ------- Run | Yrd Mat Sub Peak Influence 354 | 10 354 . Initial . | . . . Average 106 | 4 154 . Maximum Alert Level 1 | . 1 . Low Security (%) 71 | 100 58 . Level 1 28 | . 41 . Level 2 . | . . . Level 3 . | . . . Level 4 . | . . . Level 5 . | . . . High Security . | . . . Max Security . | . . . Squads Dispatched 5 | . 5 . Investigation 4 | . 4 . Extermination . | . . . Reinforcement 1 | . 1 . Assault . | . . . Garrison . | . . . Intercept . | . . . Searches Triggered . | . . . Construction Impeded . | . . . Haulers Reinforced . | . . . Active Scanning Responses . | . . . Cargo Convoy Interrupts . | . . . Stealth | -11 -10 -10 --------- Run | Yrd Mat Sub Distress Signals . | . . . Communications Jammed . | . . . Distress Signals . | . . . Times Spotted 29 | . 28 1 Peak Tracking Total 3 | . 3 3 Tactical Retreats . | . . . Traps | -11 -10 -10 ------- Run | Yrd Mat Sub Traps Triggered 1 | . 1 . Indirectly . | . . . Trap Hack Attempts . | . . . Triggered . | . . . Disarmed . | . . . Reprogrammed 7 | . 7 . Reused 1 | . 1 . Traps Extracted . | . . . Installed . | . . . Triggered 1 | . 1 . Machines | -11 -10 -10 ---------- Run | Yrd Mat Sub Machines Disabled 3 | . 3 . Max in Single Turn 3 | . 3 . Machines Repaired . | . . . Machines Dismantled . | . . . Machines Sabotaged . | . . . Overloaded Fab Kills . | . . . Hacking | -11 -10 -10 --------- Run | Yrd Mat Sub Machines Accessed 10 | . 10 . Terminals 7 | . 7 . Fabricators . | . . . Repair Stations 1 | . 1 . Recycling Units 2 | . 2 . Scanalyzers . | . . . Garrison Access . | . . . Total Hacks 45 | . 45 . Successful 25 | . 25 . Failed 20 | . 20 . Catastrophic 2 | . 2 . Database Lockouts . | . . . Manual 6 | . 6 . Terminals 31 | . 31 . Fabricators . | . . . Repair Stations 7 | . 7 . Recycling Units 7 | . 7 . Scanalyzers . | . . . Garrison Access . | . . . Terminal Hacks 15 | . 15 . Record 4 | . 4 . Prototype ID Bank 3 | . 3 . Branch Access Points 1 | . 1 . Locate Traps 2 | . 2 . Reprogram Traps 2 | . 2 . Surveillance Status 2 | . 2 . Zone Layout 1 | . 1 . Fabricator Hacks . | . . . Repair Station Hacks 4 | . 4 . Scan Component 2 | . 2 . Repair 2 | . 2 . Recycling Unit Hacks 6 | . 6 . Recycle Component 1 | . 1 . Process 1 | . 1 . Report Inventory 2 | . 2 . Retrieve Components 2 | . 2 . Scanalyzer . | . . . Garrison Access Hacks . | . . . Unauthorized Hacks . | . . . Terminals . | . . . Fabricators . | . . . Repair Stations . | . . . Recycling Units . | . . . Scanalyzers . | . . . Garrison Access . | . . . Data Cores Recovered . | . . . Used . | . . . Hacking Detections 9 | . 9 . Full Trace Events 5 | . 5 . Feedback Events . | . . . Feedback Blocked . | . . . Robot Schematics Acquired . | . . . Robots Built . | . . . Authchips . | . . . Time . | . . . Total Robot Build Rating . | . . . Part Schematics Acquired . | . . . Parts Built . | . . . Authchips . | . . . Time . | . . . Total Part Build Rating . | . . . Parts Repaired 2 | . 2 . Time 58 | . 58 . Parts Recycled 1 | . 1 . Recycled Matter 62 | . 62 . Retrieved Matter . | . . . Retrieved Components 10 | . 10 . Parts Scanalyzed . | . . . Part Schematics Acquired . | . . . Parts Damaged . | . . . Bothacking | -11 -10 -10 ------------ Run | Yrd Mat Sub Used RIF Installer . | . . . Robots Hacked 1 | . 1 . Non-combat . | . . . Combat 1 | . 1 . Robot Hacks Applied 1 | . 1 . parse_system 1 | . 1 . Relay Couplers Released . | . . . Fabnet Peak Effective % . | . . . Robots Rewired . | . . . Allies Hacked . | . . . Hacks Repelled . | . . . Allies | -11 -10 -10 -------- Run | Yrd Mat Sub Total Allies . | . . . Largest Group . | . . . Highest-Rated Group . | . . . Highest-Rated Ally . | . . . Total Orders . | . . . Ally Attacks . | . . . Total Damage . | . . . Kills . | . . . Allies Corrupted . | . . . Allies Melted . | . . . Intel | -11 -10 -10 ------- Run | Yrd Mat Sub Robot Analysis Total . | . . . Derelict Logs Recovered . | . . . Drone Launches . | . . . Drone Recoveries . | . . . Exploration | -11 -10 -10 ------------- Run | Yrd Mat Sub Turns Passed 2240 | 712 1520 8 Spaces Moved 1207 | 96 1111 . Core 8 | 3 5 . Treads 258 | . 258 . Legs . | . . . Wheels 910 | 93 817 . Hover 31 | . 31 . Flight . | . . . Fastest Speed 50 | 50 80 . Average Speed 98 | 79 100 . Slowest Speed 200 | 95 200 . Overloaded Moves . | . . . Propulsion Burnouts . | . . . Robots Hopped . | . . . Cave-ins Triggered . | . . . Exploration Rate (%) 35 | 6 99 1 Regions Visited 2 Branch Regions 1 Pre-discovered Areas . | . . . Known Exits Taken 1 | . 1 . Unknown Exits Taken 1 | 1 . . Scrap Searched . | . . . Spaces Dug . | . . . Terrain Destroyed 72 | . 50 22 Melee . | . . . Projectile . | . . . AOE 72 | . 50 22 Terrain Rammed . | . . . Walls Destroyed . | . . . Machines Disabled . | . . . Actions | -11 -10 -10 --------- Run | Yrd Mat Sub Total 2136 | 716 1416 4 Wait 807 | 605 202 . Move 1205 | 95 1110 . Hop . | . . . Pick Up 11 | 3 8 . Fast Attach 15 | 7 8 . Attach 1 | . 1 . Detach . | . . . Swap 10 | . 10 . Drop 7 | . 7 . Fire 76 | 6 66 4 Melee 4 | . 4 . Ram . | . . . Kick . | . . . Crush . | . . . Escape Stasis . | . . . Rewire . | . . . Trap . | . . . Miscellaneous . | . . . Route ------- -11/Scrapyard -10/Materials (discovered 5 exits: *Mat x3 / *Min / *Sub) -10/Subcaves History --------- Turn | Location | Event 13 | -11/Scrapyard | Discovered new exit (range 13) 713 | -11/Scrapyard | Entered Materials 714 | -10/Materials | Build established: Mutant 1037 | -10/Materials | Discovered new exit (range 8) 1251 | -10/Materials | Discovered new exit (range 16) 1539 | -10/Materials | Core integrity fell below 50% 1586 | -10/Materials | Discovered new exit (range 16) 1707 | -10/Materials | Identified exit to Mines 1721 | -10/Materials | Discovered new exit (range 7) 1773 | -10/Materials | Repaired Med. Laser 1796 | -10/Materials | Core integrity fell below 20% 1806 | -10/Materials | Repaired Mni. Grenade Launcher 1838 | -10/Materials | Identified exit to Materials 1873 | -10/Materials | Discovered new exit (range 8) 1877 | -10/Materials | Identified exit to Subcaves 2233 | -10/Materials | Entered Subcaves 2233 | -10/Subcaves | Ambushed by Subdweller buried in earth 2241 | -10/Subcaves | Destroyed by GU-024(R) with Subdweller Machine Gun Last Messages --------------- 01877_ EXIT=IDENTIFIED: SUBCAVES 01988_ Acquired 20 matter. 01995_ U-05 Engineer lays Concrete. 02021_ K-01 Serf cleans the Nuclear Reactor. 02120_ Connecting with Terminal... >>Prototypes Downloading prototype IDs... Imp. Medium Laser Imp. Flight Unit >>Enumerate(Surveillance) Retrieving latest reported positions... Found 2 active surveillance squads. Downloaded coordinate data. LOCATION=SUBCAVES AMBIENT_HEAT=-10 GOAL=ESCAPE 02234_ GU-024(R): "ARGHSUB!" 02238_ The unstable cave ceiling collapses. 02239_ Signal Interpreter destroyed. 02240_ Ion Engine destroyed. Map ----- +----------------------------------------------------+ | ?????????????????????????????????????????????????? | | ?????????????????????????????????????????????????? | | ?????????????????????????????????????????????????? | | ?????????????????????????????????????????????????? | | ?????????????????????????????????????????????????? | | ?????????????????????????????????????????????????? | | ?????????????????????????????????????????????????? | | ?????????????????????????????????????????????????? | | ?????????????????????????????????????????????????? | | ?????????????????????????????????????????????????? | | ?????????????????????????????????????????????????? | | ?????????????????????????????????????????????????? | | ?????????????????????????????????????????????????? | | ?????????????????????????????????????????????????? | | ?????????????????????????????????????????????????? | | ?????????????????????????????????????????????????? | | ?????????????????????????????????????????????????? | | ?????????????????????????????????????????????????? | | ???????????????####???########???????????????????? | | ???????????? ?#################??????????????????? | | ???????????? ## ##### ###??????????????????? | | ??????????? # ##??????????????????? | | ?????????? # ??????????????????? | | ??????????## # ??????????????????? | | ??????????### R ##????????????????????? | | ??????????## @ ##????????????????????? | | ??????????## ## ????????????????????? | | ??????????## ####????????????????????? | | ??????????### ### ####?????????????????????? | | ??????????# # ?########???????????????????????? | | ??????????? ??????#####????????????????????????? | | ?????????????????????????????????????????????????? | | ?????????????????????????????????????????????????? | | ?????????????????????????????????????????????????? | | ?????????????????????????????????????????????????? | | ?????????????????????????????????????????????????? | | ?????????????????????????????????????????????????? | | ?????????????????????????????????????????????????? | | ?????????????????????????????????????????????????? | | ?????????????????????????????????????????????????? | | ?????????????????????????????????????????????????? | | ?????????????????????????????????????????????????? | | ?????????????????????????????????????????????????? | | ?????????????????????????????????????????????????? | | ?????????????????????????????????????????????????? | | ?????????????????????????????????????????????????? | | ?????????????????????????????????????????????????? | | ?????????????????????????????????????????????????? | | ?????????????????????????????????????????????????? | | ?????????????????????????????????????????????????? | +----------------------------------------------------+ Best States ------------- Heat Dissipation 25 Energy Generation 10 Energy Capacity 250 Matter Stores 300 Matter Capacity 300 Sight Range 16 Robot Scan Range 14 Terrain Scan Range 16 Terrain Scan Density 10 Evasion (%) 44 Recoil Reduction 2 Offensive Hacking 10 Item Schematics ----------------- None Robot Schematics ------------------ None Fabricated ------------ Nothing Alien Tech Used ----------------- None Achievements -------------- Part-time Mechanic Challenges ------------ None Game ------ Seed BlastInertialTorch Manual? 0 Play Time 00:52:18 Cumulative 8.4 hours Start 2024.04.13 @ 07:19:44 End 2024.04.13 @ 08:18:35 Sessions 1 Manual Loads 0 Difficulty Rogue Special Mode None Game No. 9 Rogue 9 Adventurer 0 Explorer 0 Win Type - Total 0 Types 0/0/0/0/0/0/0/0/0 Lore% 5 Gallery% 7 Achievement% 5 Wizard Run 0 Options --------- Layout 2 ASCII 1 Keyboard 1 Movement Vi Keybinds 0 Fullscreen 2 Font 40/SmallcapsGlow Map View 50x44 Zoom Use 2% Tactical HUD 1 Map Filters NONE Filters NONE Steam 0 RUN: badf9b63-6e46-4564-aa6a-d2c6115beb09